[Event "Prague Open 2025"]
[Site "Prague"]
[Date "2025.01.12"]
[Round "4.19"]
[White "Zawal, Krzysztof"]
[Black "Adrian, Claude"]
[Result "1/2-1/2"]
[Annotator "RC"]
[ECO "B38"]
[WhiteElo "2013"]
[BlackElo "2151"]
[PlyCount "147"]
[EventDate "2025.01.07"]
[EventType "swiss"]
[EventCountry "CZE"]
[SourceTitle "playchess.com"]
[Source "ChessBase"]
[SourceQuality "1"]
[TimeControl "40/5400+30:1800+30"]

1. e4 {[%emt 0:00:03]} c5 {[%emt 0:02:20]} 2. Nf3 {[%emt 0:00:06]} Nc6 {[%emt 0:00:05]} 3. d4 {[%emt 0:00:20]} cxd4 {[%emt 0:00:07]} 4. Nxd4 {[%emt 0:00:32]} g6 {[%emt 0:00:08]} 5. c4 {[%emt 0:01:13]} Bg7 {[%emt 0:00:11]} 6. Be3 {[%emt 0:00:06]} d6 {[%emt 0:00:07]} 7. Nc3 {[%emt 0:00:18]} Nh6 {[%emt 0:00:07]} 8. Be2 {[%emt 0:01:06]} f5 {[%emt 0:00:34]} 9. exf5 {[%emt 0:17:55]} Nxf5 {[%emt 0:01:08]} 10. Nxf5 {[%emt 0:01:20]} Bxf5 {[%emt 0:00:05]} 11. Qd2 {[%emt 0:00:42]} Qa5 {[%emt 0:00:19]} 12. Rc1 {[%emt 0:00:47]} O-O {[%emt 0:00:12]} 13. O-O {[%emt 0:01:00]} Rf7 {[%emt 0:00:17]} 14. Bf3 {[%emt 0:06:01]} Ne5 {[%emt 0:06:31]} 15. Be2 {[%emt 0:06:47]} Raf8 {[%emt 0:05:41]} 16. b3 {[%emt 0:07:55]} Ng4 {[%emt 0:15:48]} 17. Bxg4 {[%emt 0:00:57]} Bxg4 {[%emt 0:00:08]} 18. f3 {[%emt 0:00:48]} Bd7 {[%emt 0:03:17]} 19. Bd4 {[%emt 0:00:29]} Bc6 {[%emt 0:11:06]} 20. Bxg7 {[%emt 0:00:38]} Rxg7 {[%emt 0:00:38]} 21. Rfe1 {[%emt 0:01:58]} g5 {[%emt 0:05:53]} 22. Qd4 {[%emt 0:01:20]} Rf4 {[%emt 0:12:51]} 23. Qe3 {[%emt 0:00:49]} e5 {[%emt 0:00:29]} 24. h3 {[%emt 0:02:51]} h5 {[%emt 0:02:51]} 25. Ne2 {[%emt 0:01:29]} Rff7 {[%emt 0:05:27]} 26. Ng3 {[%emt 0:06:15]} g4 {[%emt 0:01:19]} 27. fxg4 {[%emt 0:05:47]} hxg4 {[%emt 0:00:07]} 28. h4 {[%emt 0:02:06]} Qd8 {[%emt 0:04:44]} 29. h5 {[%emt 0:00:30]} Qh4 {[%emt 0:01:48]} 30. Rf1 {[%emt 0:02:12]} Rf3 {[%emt 0:13:32]} 31. Nf5 {[%emt 0:00:38]} Rxe3 {[%emt 0:00:59]} 32. Nxh4 {[%emt 0:00:05]} g3 {[%emt 0:01:47]} 33. Rce1 {[%emt 0:00:53]} Rxe1 {[%emt 0:00:50]} 34. Rxe1 {[%emt 0:00:02]} Rg5 {[%emt 0:00:31]} 35. Re3 {[%emt 0:00:18]} Kf7 {[%emt 0:02:22]} 36. Nf3 {[%emt 0:00:32]} Rxh5 {[%emt 0:00:25]} 37. Nd2 {[%emt 0:00:17]} Rg5 {[%emt 0:00:27]} 38. Nf1 {[%emt 0:00:06]} b5 {[%emt 0:01:02]} 39. Rxg3 {[%emt 0:01:19]} Rxg3 {[%emt 0:00:29]} 40. Nxg3 {[%emt 0:00:03]} b4 {[%emt 0:00:48]} 41. Kf2 {[%emt 0:30:43]} Kf6 {[%emt 0:31:49]} 42. Nf1 {[%emt 0:00:47]} Kf5 {[%emt 0:00:00]} 43. Nd2 {[%emt 0:00:00]} a5 {[%emt 0:00:00]} 44. Kf1 {[%emt 0:00:00]} Kf4 {[%emt 0:00:00]} 45. Kf2 {[%emt 0:00:00]} Bb7 {[%emt 0:00:00]} 46. g3+ {[%emt 0:00:00]} Kg4 {[%emt 0:00:00]} 47. Nf1 {[%emt 0:00:00]} Be4 {[%emt 0:00:00]} 48. Nd2 {[%emt 0:00:00]} Bc2 {[%emt 0:00:00]} 49. Kg2 {[%emt 0:00:00]} Bg6 {[%emt 0:00:00]} 50. Kf2 {[%emt 0:00:00]} Bf5 {[%emt 0:00:00]} 51. Kg2 {[%emt 0:00:00]} Bd7 {[%emt 0:00:00]} 52. Kf2 {[%emt 0:00:00]} Bc6 {[%emt 0:00:00]} 53. Nf1 {[%emt 0:00:00]} Be4 {[%emt 0:00:00]} 54. Nd2 {[%emt 0:00:00]} Bc2 {[%emt 0:00:00]} 55. Kg2 {[%emt 0:00:00]} a4 {[%emt 0:00:00]} 56. bxa4 {[%emt 0:00:00]} Bxa4 {[%emt 0:00:00]} 57. Kf2 {[%emt 0:00:00]} Bc2 {[%emt 0:00:00]} 58. Kg2 {[%emt 0:00:00]} Ba4 {[%emt 0:00:00]} 59. Kf2 {[%emt 0:00:00]} Bc6 {[%emt 0:00:00]} 60. Nf1 {[%emt 0:00:00]} Kh3 {[%emt 0:00:05]} 61. Nd2 {[%emt 0:00:00]} Bb7 {[%emt 0:01:19]} 62. Nb3 {[%emt 0:00:00]} Kg4 {[%emt 0:01:10]} 63. Nd2 {[%emt 0:00:00]} Bc6 {[%emt 0:00:14]} 64. Nf1 {[%emt 0:00:00]} Be4 {[%emt 0:02:00]} 65. Nd2 {[%emt 0:00:00]} Bh7 {[%emt 0:00:27]} 66. Kg2 {[%emt 0:00:00]} Bg6 {[%emt 0:01:01]} 67. Kf2 {[%emt 0:00:00]} Bf7 {[%emt 0:00:14]} 68. Ke3 {[%emt 0:00:00]} d5 {[%emt 0:01:23]} 69. cxd5 {[%emt 0:00:00]} Bxd5 {[%emt 0:00:06]} 70. Nb3 {[%emt 0:00:00]} Kxg3 {[%emt 0:00:22]} 71. Nc5 {[%emt 0:00:00]} Bxa2 {[%emt 0:01:49]} 72. Ke4 {[%emt 0:00:00]} Kf2 {[%emt 0:03:22]} 73. Nd3+ {[%emt 0:00:00]} Ke2 {[%emt 0:00:05]} 74. Nxb4 {[%emt 0:00:00]} 1/2-1/2

[Event "Prague Open 2025"]
[Site "Prague"]
[Date "2025.01.12"]
[Round "4.20"]
[White "Tyomkyn, Mikhail"]
[Black "Pousada Garcia, Victor Daniel"]
[Result "1-0"]
[Annotator "RC"]
[ECO "A05"]
[WhiteElo "2143"]
[BlackElo "1984"]
[PlyCount "51"]
[EventDate "2025.01.07"]
[EventType "swiss"]
[EventCountry "CZE"]
[SourceTitle "playchess.com"]
[Source "ChessBase"]
[SourceQuality "1"]
[TimeControl "40/5400+30:1800+30"]

1. Nf3 {[%emt 0:00:04]} Nf6 {[%emt 0:00:14]} 2. g3 {[%emt 0:00:06]} g6 {[%emt 0:01:56]} 3. Bg2 {[%emt 0:00:06]} Bg7 {[%emt 0:00:03]} 4. O-O {[%emt 0:00:41]} O-O {[%emt 0:00:04]} 5. c4 {[%emt 0:00:23]} d5 {[%emt 0:01:18]} 6. cxd5 {[%emt 0:01:21]} Qxd5 {[%emt 0:00:11]} 7. d4 {[%emt 0:22:10]} c6 {[%emt 0:04:28]} 8. Ne5 {[%emt 0:05:08]} Qa5 {[%emt 0:03:01]} 9. Nc3 {[%emt 0:00:43]} Be6 {[%emt 0:01:02]} 10. e3 {[%emt 0:04:43]} Qc7 {[%emt 0:03:24]} 11. Qe2 {[%emt 0:04:08]} Nbd7 {[%emt 0:00:29]} 12. Nxd7 {[%emt 0:02:21]} Qxd7 {[%emt 0:00:36]} 13. Rd1 {[%emt 0:00:07]} Rfd8 {[%emt 0:02:44]} 14. b3 {[%emt 0:02:52]} Nd5 {[%emt 0:09:45]} 15. Bb2 {[%emt 0:01:48]} Nxc3 {[%emt 0:02:13]} 16. Bxc3 {[%emt 0:00:10]} a5 {[%emt 0:00:14]} 17. Qc2 {[%emt 0:10:16]} Bg4 {[%emt 0:05:29]} 18. Rd2 {[%emt 0:00:38]} Qf5 {[%emt 0:01:28]} 19. e4 {[%emt 0:08:06]} Qh5 {[%emt 0:00:49]} 20. d5 {[%emt 0:00:46]} Bh6 {[%emt 0:06:39]} 21. f4 {[%emt 0:03:25]} cxd5 {[%emt 0:00:49]} 22. Rxd5 {[%emt 0:04:08]} Rxd5 {[%emt 0:03:55]} 23. exd5 {[%emt 0:00:01]} Bf3 {[%emt 0:00:17]} 24. Qd3 {[%emt 0:02:18]} Bxg2 {[%emt 0:00:56]} 25. Qd4 {[%emt 0:03:21]} e5 {[%emt 0:00:13]} 26. dxe6 {[%emt 0:00:12]} 1-0

[Event "Prague Open 2025"]
[Site "Prague"]
[Date "2025.01.12"]
[Round "4.21"]
[White "Goh, Choon Keng Philip"]
[Black "Sindler, Michal"]
[Result "0-1"]
[Annotator "RC"]
[ECO "E61"]
[WhiteElo "1978"]
[BlackElo "2136"]
[PlyCount "98"]
[EventDate "2025.01.07"]
[EventType "swiss"]
[EventCountry "CZE"]
[SourceTitle "playchess.com"]
[Source "ChessBase"]
[SourceQuality "1"]
[TimeControl "40/5400+30:1800+30"]

1. d4 {[%emt 0:00:03]} Nf6 {[%emt 0:00:31]} 2. c4 {[%emt 0:00:08]} g6 {[%emt 0:00:15]} 3. Nc3 {[%emt 0:00:11]} Bg7 {[%emt 0:00:06]} 4. Nf3 {[%emt 0:00:08]} O-O {[%emt 0:00:12]} 5. Bg5 {[%emt 0:00:08]} h6 {[%emt 0:05:54]} 6. Bh4 {[%emt 0:00:13]} c5 {[%emt 0:00:38]} 7. d5 {[%emt 0:00:59]} d6 {[%emt 0:03:36]} 8. e3 {[%emt 0:01:57]} g5 {[%emt 0:06:48]} 9. Bg3 {[%emt 0:00:10]} Nh5 {[%emt 0:01:59]} 10. Bd3 {[%emt 0:04:21]} Nxg3 {[%emt 0:09:27]} 11. hxg3 {[%emt 0:00:21]} e6 {[%emt 0:02:24]} 12. Qc2 {[%emt 0:04:47]} Re8 {[%emt 0:09:41]} 13. Kf1 {[%emt 0:09:33]} Na6 {[%emt 0:08:56]} 14. a3 {[%emt 0:03:12]} Nc7 {[%emt 0:02:28]} 15. Rd1 {[%emt 0:03:24]} exd5 {[%emt 0:06:40]} 16. cxd5 {[%emt 0:06:39]} Rb8 {[%emt 0:03:51]} 17. Bf5 {[%emt 0:10:09]} b5 {[%emt 0:03:47]} 18. Ne2 {[%emt 0:04:08]} b4 {[%emt 0:04:08]} 19. a4 {[%emt 0:01:12]} b3 {[%emt 0:01:11]} 20. Qb1 {[%emt 0:02:01]} Na8 {[%emt 0:02:38]} 21. g4 {[%emt 0:01:11]} Rb4 {[%emt 0:02:16]} 22. Ng3 {[%emt 0:02:29]} Qf6 {[%emt 0:05:15]} 23. Rd2 {[%emt 0:10:17]} Rxg4 {[%emt 0:05:40]} 24. Bxg4 {[%emt 0:03:04]} Bxg4 {[%emt 0:00:10]} 25. Nh2 {[%emt 0:01:01]} Bc8 {[%emt 0:01:55]} 26. Nh5 {[%emt 0:01:50]} Qd8 {[%emt 0:01:26]} 27. Nxg7 {[%emt 0:01:21]} Kxg7 {[%emt 0:00:13]} 28. Qd3 {[%emt 0:02:14]} Qa5 {[%emt 0:01:27]} 29. Ke1 {[%emt 0:03:31]} Qxa4 {[%emt 0:02:22]} 30. Qc3+ {[%emt 0:00:23]} f6 {[%emt 0:00:26]} 31. Nf1 {[%emt 0:00:47]} Re5 {[%emt 0:02:20]} 32. f3 {[%emt 0:01:52]} Nb6 {[%emt 0:00:53]} 33. e4 {[%emt 0:01:41]} a5 {[%emt 0:02:20]} 34. Kf2 {[%emt 0:03:13]} Qb4 {[%emt 0:00:59]} 35. Qxb4 {[%emt 0:03:01]} axb4 {[%emt 0:00:42]} 36. Ne3 {[%emt 0:00:24]} f5 {[%emt 0:00:40]} 37. exf5 {[%emt 0:01:25]} Bxf5 {[%emt 0:01:10]} 38. Ra1 {[%emt 0:05:00]} c4 {[%emt 0:02:28]} 39. Nxf5+ {[%emt 0:09:12]} Rxf5 {[%emt 0:00:04]} 40. Rc1 {[%emt 0:00:59]} Rf7 {[%emt 0:01:55]} 41. Re2 {[%emt 0:06:27]} Rc7 {[%emt 0:01:24]} 42. Re6 {[%emt 0:00:36]} Na4 {[%emt 0:13:40]} 43. Rxd6 {[%emt 0:05:33]} Nxb2 {[%emt 0:02:19]} 44. Rh1 {[%emt 0:03:30]} Nd3+ {[%emt 0:04:42]} 45. Ke3 {[%emt 0:05:22]} Nf4 {[%emt 0:03:51]} 46. Rdxh6 {[%emt 0:00:50]} Nxd5+ {[%emt 0:00:43]} 47. Ke4 {[%emt 0:00:48]} Nf6+ {[%emt 0:00:32]} 48. Ke5 {[%emt 0:03:02]} c3 {[%emt 0:01:34]} 49. Rxf6 {[%emt 0:02:25]} Rc5+ {[%emt 0:00:19]} 0-1

[Event "Prague Open 2025"]
[Site "Prague"]
[Date "2025.01.13"]
[Round "5.1"]
[White "Harshavardhan G B"]
[Black "Horak, Martin"]
[Result "1/2-1/2"]
[Annotator "ChessBase"]
[ECO "D35"]
[WhiteElo "2405"]
[BlackElo "2357"]
[PlyCount "48"]
[EventDate "2025.01.07"]
[EventType "swiss"]
[EventCountry "CZE"]
[SourceTitle "playchess.com"]
[Source "ChessBase"]
[SourceQuality "1"]
[TimeControl "40/5400+30:1800+30"]

1. d4 {[%emt 0:00:25]} d5 {[%emt 0:01:34]} 2. c4 {[%emt 0:00:22]} e6 {[%emt 0:00:05]} 3. Nc3 {[%emt 0:00:24]} Nf6 {[%emt 0:00:13]} 4. cxd5 {[%emt 0:00:10]} Nxd5 {[%emt 0:00:06]} 5. e4 {[%emt 0:00:16]} Nxc3 {[%emt 0:00:04]} 6. bxc3 {[%emt 0:00:06]} c5 {[%emt 0:00:04]} 7. Nf3 {[%emt 0:00:08]} cxd4 {[%emt 0:00:09]} 8. cxd4 {[%emt 0:00:06]} Bb4+ {[%emt 0:00:04]} 9. Bd2 {[%emt 0:00:10]} Bxd2+ {[%emt 0:00:05]} 10. Qxd2 {[%emt 0:00:08]} O-O {[%emt 0:00:13]} 11. Bc4 {[%emt 0:00:08]} Nd7 {[%emt 0:00:26]} 12. O-O {[%emt 0:00:08]} b6 {[%emt 0:00:09]} 13. a4 {[%emt 0:00:58]} Bb7 {[%emt 0:01:14]} 14. Rfe1 {[%emt 0:00:08]} Rc8 {[%emt 0:00:49]} 15. Bd3 {[%emt 0:00:10]} Qc7 {[%emt 0:18:53]} 16. a5 {[%emt 0:02:18]} Rfd8 {[%emt 0:06:46]} 17. axb6 {[%emt 0:04:26]} axb6 {[%emt 0:00:07]} 18. h3 {[%emt 0:05:42]} h6 {[%emt 0:01:36]} 19. Rec1 {[%emt 0:08:02]} Qd6 {[%emt 0:01:18]} 20. Ra7 {[%emt 0:02:24]} Rxc1+ {[%emt 0:05:15]} 21. Qxc1 {[%emt 0:00:08]} Rc8 {[%emt 0:04:27]} 22. Qd2 {[%emt 0:01:18]} Qb8 {[%emt 0:00:53]} 23. Ra1 {[%emt 0:00:40]} Qc7 {[%emt 0:00:58]} 24. Kf1 {[%emt 0:06:54]} Nf6 {[%emt 0:02:02]} 1/2-1/2

[Event "Prague Open 2025"]
[Site "Prague"]
[Date "2025.01.13"]
[Round "5.2"]
[White "Tolmacevs, Artjoms"]
[Black "Senthil Maran K"]
[Result "1/2-1/2"]
[Annotator "TA"]
[ECO "B12"]
[WhiteElo "2252"]
[BlackElo "2398"]
[PlyCount "38"]
[EventDate "2025.01.07"]
[EventType "swiss"]
[EventCountry "CZE"]
[SourceTitle "playchess.com"]
[Source "ChessBase"]
[SourceQuality "1"]
[TimeControl "40/5400+30:1800+30"]

{[%evp 9,38,0,0,-7,15,10,20,0,0,0,0,0,0,-4,42,6,22,1,8,-3,74,87,73,52,35,14,29,0,0,13,63]} 1. e4 {[%emt 0:00:01]} c6 {[%emt 0:09:48]} 2. d4 {[%emt 0:00:05]} d5 {[%emt 0:00:08]} 3. e5 {[%emt 0:00:05]} c5 {[%emt 0:00:07]} 4. dxc5 {[%emt 0:00:18]} e6 {[%emt 0:00:12]} 5. a3 {[%emt 0:00:35]} Bxc5 {[%emt 0:00:11]} 6. b4 {[%emt 0:01:30]} Be7 {[%emt 0:00:10]} 7. Nf3 {[%emt 0:00:07]} Nd7 {[%emt 0:01:39]} 8. Bb2 {[%emt 0:09:57]} a5 {[%emt 0:01:02]} 9. b5 {[%emt 0:03:44]} Nh6 {[%emt 0:01:09]} 10. c4 {[%emt 0:10:43]} dxc4 {[%emt 0:08:13]} 11. Bxc4 {[%emt 0:03:43]} Nb6 {[%emt 0:02:20]} (11... b6 $11 {deserves consideration.}) 12. Qxd8+ {[%emt 0:00:38]} Bxd8 {[%emt 0:00:25]} 13. Bd3 {[%emt 0:07:52]} Na4 {[%emt 0:04:52]} 14. Bd4 {[%emt 0:02:17]} Bb6 {[%emt 0:01:24]} (14... Nf5 $11) 15. Bxb6 $16 {[%emt 0:03:04]} Nxb6 {[%emt 0:00:11]} 16. Nc3 {[%emt 0:02:17] White is more active.} Ke7 {[%emt 0:02:31]} 17. Ke2 {[%emt 0:03:53]} Bd7 {[%emt 0:04:42]} 18. Rac1 {[%emt 0:04:05]} Rac8 {[%emt 0:02:40]} 19. Ne4 {[%emt 0:01:43]} Nd5 {[%emt 0:30:21]} (19... f6 $11) 1/2-1/2

[Event "Prague Open 2025"]
[Site "Prague"]
[Date "2025.01.13"]
[Round "5.3"]
[White "Jain Kashish Manoj"]
[Black "Chan, Kim Yew"]
[Result "1-0"]
[Annotator "TA"]
[ECO "B12"]
[WhiteElo "2363"]
[BlackElo "2258"]
[PlyCount "73"]
[EventDate "2025.01.07"]
[EventType "swiss"]
[EventCountry "CZE"]
[SourceTitle "playchess.com"]
[Source "ChessBase"]
[SourceQuality "1"]
[TimeControl "40/5400+30:1800+30"]

{[%evp 15,73,27,37,25,26,33,31,43,33,43,36,31,38,39,30,11,25,10,27,22,31,30,41,48,54,49,151,152,149,150,123,71,54,60,55,48,62,72,103,84,185,185,311,319,1121,751,696,720,730,718,29988,29989,29990,29991,29991,759,29993,29994,29996,29997]} 1. e4 {[%emt 0:02:15]} c6 {[%emt 0:00:02]} 2. d4 {[%emt 0:00:08]} d5 {[%emt 0:00:02]} 3. e5 {[%emt 0:00:06]} Bf5 {[%emt 0:00:04]} 4. Nf3 {[%emt 0:00:06]} e6 {[%emt 0:00:04]} 5. Be2 {[%emt 0:00:05]} c5 {[%emt 0:00:07]} 6. Be3 {[%emt 0:00:06]} cxd4 {[%emt 0:00:11]} 7. Nxd4 {[%emt 0:00:19]} Ne7 {[%emt 0:00:02]} 8. O-O {[%emt 0:00:11]} Nbc6 {[%emt 0:00:10]} 9. Bb5 {[%emt 0:00:06]} a6 {[%emt 0:00:09]} 10. Bxc6+ {[%emt 0:00:07]} bxc6 {[%emt 0:00:02] Black is weak on the dark squares} 11. c4 {[%emt 0:00:21]} Qd7 {[%emt 0:00:21]} 12. Nc3 {[%emt 0:00:29]} dxc4 {[%emt 0:00:20]} 13. Na4 {[%emt 0:00:11] Excellent horsemanship.} Nd5 {[%emt 0:00:42] Against Nb6} 14. Nxf5 {[%emt 0:00:18]} exf5 {[%emt 0:00:07]} 15. Rc1 {[%emt 0:00:08]} c3 {[%emt 0:00:20]} 16. Qc2 {[%emt 0:00:56]} Be7 {[%emt 0:24:32]} 17. Nxc3 {[%emt 0:03:59]} (17. bxc3 Nxe3 18. fxe3 Rd8 $16) 17... Nxe3 {[%emt 0:06:09]} 18. fxe3 {[%emt 0:00:03][%cal Oc3a4]} Bg5 {[%emt 0:01:21]} 19. Rce1 {[%emt 0:13:10]} (19. Rxf5 $2 Bxe3+ 20. Rf2 Bxc1 (20... Bxf2+ $2 21. Qxf2 O-O 22. h3 $19) 21. Qxc1 O-O $19) 19... g6 {[%emt 0:01:21] [#]} 20. g4 $1 {[%emt 0:00:14]} fxg4 {[%emt 0:06:24]} (20... O-O $14) (20... Qe7 21. gxf5) 21. Ne4 $16 {[%emt 0:01:07]} Be7 {[%emt 0:00:34][%cal Bg5e7,Be7d6,Bd6f4][%mdl 32] Prevents Nd6+} 22. Rd1 {[%emt 0:00:21]} Qc8 {[%emt 0:04:44] [#]} 23. e6 $1 {[%emt 0:10:49][%mdl 512] White has more active pieces.} Qxe6 {[%emt 0:06:24][%cal Oe8g8] [#]} (23... fxe6 $2 24. Qc3 (24. Nf6+ Bxf6 25. Rxf6 a5 $18) 24... Rg8 25. Rd6 $18) 24. Nd6+ $1 {[%emt 0:00:51]} Bxd6 {[%emt 0:00:28]} 25. Qxc6+ {[%emt 0:00:07]} Kf8 {[%emt 0:01:59][%cal Od6h2,Be8f8,Bf8g7,Bg7h6][%mdl 32] aiming for ...Bxh2+!.} 26. Qxa8+ {[%emt 0:01:10]} Kg7 {[%emt 0:00:03] [#]} 27. Qd5 $1 $36 {[%emt 0:01:38][%mdl 2048] Keeping Black busy. Some like it hot} Qxe3+ {[%emt 0:06:29]} (27... Qxd5 $16 28. Rxd5 Be7) 28. Kh1 $18 {[%emt 0:02:48]} Bf4 {[%emt 0:04:29] [#]} (28... Bb8 {was called for.}) 29. Rd4 $1 {[%emt 0:08:44]} Bb8 $2 {[%emt 0:12:04]} ({Avoid the trap} 29... g5 $2 30. Rfxf4 Qc1+ 31. Kg2 Qxf4 (31... gxf4 32. Qg5+ Kf8 33. Rd8#) 32. Rxf4 gxf4 33. Qg5+ Kf8 34. Qxf4 $18 (34. Qxg4 Rg8 $14)) (29... Bg5) 30. Rxf7+ {[%emt 0:11:22]} Kh6 {[%emt 0:00:45]} 31. Rxg4 {[%emt 0:00:11][%cal Rg4h4]} Qe1+ {[%emt 0:03:59]} 32. Rg1 {[%emt 0:00:09]} Qh4 {[%emt 0:00:38] Wards off Qg5+} 33. Qd2+ {[%emt 0:01:31]} Kh5 {[%emt 0:00:55]} 34. Qe2+ {[%emt 0:00:28]} Kh6 {[%emt 0:00:08]} 35. Rg4 {[%emt 0:00:16]} (35. Qxa6 $2 Qxh2#) (35. Qe3+ $142 Kh5 36. Rg2 Bc7 37. Qe6 (37. Rxc7 g5 38. Qe2+ g4 39. Rc5+ Qg5 40. Qxg4+ Kg6 41. Qf5+ Kg7 42. Rxg5+ Kh6 43. Qh3#) 37... Qg5 38. Rxg5+ Kxg5 39. Qf6+ (39. Rxc7 Rf8 40. Qe3+ Kh5 41. Rxh7+ Kg4 42. h3+ Kf5 43. Re7 g5 44. Qe6+ Kf4 45. Qg4#) 39... Kg4 40. Rxc7 (40. Qxh8 Kh5 41. Rxc7 a5 42. Qe5+ g5 43. Rxh7+ Kg6 44. Rg7+ Kh6 45. Qxg5#)) 35... Qh5 {[%emt 0:00:42]} 36. Qe3+ {[%emt 0:00:18]} g5 {[%emt 0:00:08]} 37. Rf6+ {[%emt 0:00:06]} 1-0

[Event "Prague Open 2025"]
[Site "Prague"]
[Date "2025.01.13"]
[Round "5.4"]
[White "Mueer, Sebastian"]
[Black "Lewtak, Damian"]
[Result "0-1"]
[Annotator "TA"]
[ECO "E20"]
[WhiteElo "2192"]
[BlackElo "2359"]
[PlyCount "74"]
[EventDate "2025.01.07"]
[EventType "swiss"]
[EventCountry "CZE"]
[SourceTitle "playchess.com"]
[Source "ChessBase"]
[SourceQuality "1"]
[TimeControl "40/5400+30:1800+30"]

{[%evp 9,73,-15,-16,-15,6,-13,-13,-11,0,0,10,0,0,16,83,24,19,0,0,-14,0,26,62,-78,-93,-53,-45,-495,-495,-471,-391,-383,-315,-1089,-1058,-1783,-1786,-1653,-1578,-1278,-768,-734,-722,-485,-2150,-2063,-2009,-1979,-1979,-1765,-1677,-1397,-952,-928,-905,-5281,-3318,-29994,-29995,-29995,-29996,-29996,-29997,-29998,-29999,-29999]} 1. d4 {[%emt 0:02:07][%cal Bd2d4,Bd4d5][%mdl 32]} Nf6 {[%emt 0:01:36]} 2. c4 {[%emt 0:00:33]} e6 {[%emt 0:00:22]} 3. Nc3 {[%emt 0:00:08]} Bb4 {[%emt 0:00:08]} 4. f3 {[%emt 0:00:07]} c5 {[%emt 0:00:47]} 5. d5 {[%emt 0:00:06] [#]} b5 $1 {[%emt 0:01:05]} 6. e4 {[%emt 0:00:10]} d6 {[%emt 0:01:24]} 7. Nge2 {[%emt 0:02:31]} bxc4 {[%emt 0:01:13] Threatening ...exd5.} 8. Nf4 {[%emt 0:03:19]} g5 {[%emt 0:00:34]} (8... e5 $5 9. Nfe2 $8 Nbd7 $11) 9. Nfe2 $1 {[%emt 0:00:18]} exd5 {[%emt 0:00:05]} 10. exd5 {[%emt 0:00:22]} Qe7 {[%emt 0:00:15]} 11. Bxg5 {[%emt 0:01:21] And now Qd2 would win.} Nbd7 {[%emt 0:00:52] Active counter play!} (11... Bxc3+ $11 12. bxc3 h6 13. Bxf6 Qxf6) 12. Qd2 {[%emt 0:07:32]} (12. Qc2 $16) 12... Rg8 $11 {[%emt 0:01:55][%cal Og8g5]} 13. Kd1 {[%emt 0:08:38]} Rb8 {[%emt 0:21:26][%cal Og8g5]} 14. Ng3 {[%emt 0:09:42]} Bxc3 {[%emt 0:06:54]} (14... Nb6 {is interesting.} 15. Kc2 Bxc3 16. bxc3 Na4) 15. bxc3 {[%emt 0:00:14]} Ne5 {[%emt 0:00:09][%cal Og8g5]} 16. Qf4 {[%emt 0:13:01] [#]} ({Don't go for} 16. Nh5 $2 Rxg5 17. Qxg5 Nxh5 (17... Nxd5 18. Qd2 $11) 18. Qg8+ (18. Qxh5 Bd7 $19) 18... Kd7 19. Qxh7 Nf6 $19) (16. Be2 $14 {stays ahead.}) 16... Rxg5 $1 $17 {[%emt 0:11:24]} 17. Qxg5 {[%emt 0:00:12]} Nxd5 {[%emt 0:00:10]} 18. Qg8+ $2 {[%emt 0:13:20][%mdl 8192]} (18. Qd2 $1 $15 Be6 19. Be2) 18... Kd7 $19 {[%emt 0:07:43]} 19. Ne4 {[%emt 0:09:28]} Kc7 {[%emt 0:01:35]} 20. Kc1 {[%emt 0:02:05]} Bf5 {[%emt 0:05:49]} 21. Qg3 $2 {[%emt 0:04:34]} (21. Qg5 Qxg5+ 22. Nxg5) 21... Qe8 {[%emt 0:03:09]} 22. Rb1 {[%emt 0:10:51]} Rxb1+ {[%emt 0:01:07]} 23. Kxb1 {[%emt 0:00:01]} Nxc3+ {[%emt 0:00:09]} 24. Ka1 {[%emt 0:00:04]} Nd5 {[%emt 0:04:51] and ...Qa4 should not be overlooked} 25. Qf2 {[%emt 0:01:51]} Qa4 {[%emt 0:03:38]} 26. Qd2 {[%emt 0:00:22] Wards off Qd1+} Bxe4 {[%emt 0:00:28]} 27. fxe4 {[%emt 0:00:09]} Nb4 {[%emt 0:00:37][%cal Oc4c3] ( -> ...c3!)} 28. Kb1 {[%emt 0:05:14]} Qa3 {[%emt 0:02:09] ( -> ...c3)} 29. Qb2 {[%emt 0:02:19]} Qe3 {[%emt 0:00:06] White is weak on the dark squares} 30. Qe2 {[%emt 0:00:10]} Qc3 {[%emt 0:00:11] ( -> ...Ned3)} 31. Qf2 {[%emt 0:00:42]} Kb6 {[%emt 0:01:45] ( -> ...Ng4)} 32. g3 {[%emt 0:00:38]} Nf3 {[%emt 0:01:43] ( -> ...Nd2+) A dynamic duo of knights.} 33. Qb2 {[%emt 0:00:49]} Qe1+ {[%emt 0:00:32]} 34. Qc1 {[%emt 0:00:24]} Nd2+ {[%emt 0:00:07]} 35. Kb2 {[%emt 0:00:16]} c3+ {[%emt 0:00:06]} 36. Qxc3 {[%emt 0:01:00]} Qb1+ {[%emt 0:00:06]} 37. Ka3 {[%emt 0:00:06]} Qxa2# 0-1